bitfinex/quotes_BTCUSD_20250421
["timestamp","ask_amount","ask_price","bid_price","bid_amount"]
[1745229832951,0.0458,87316.0,87295.0,0.0109068]
[1745229836700,0.04406103,87316.0,87295.0,0.0109068]
[1745229839855,0.002291,87315.0,87294.0,0.1755655]
[1745229840049,0.002291,87315.0,87295.0,0.0022908]
[1745229840450,0.002291,87315.0,87294.0,0.0022908]
[1745229841677,0.002291,87315.0,87294.0,0.01080737]
[1745229841842,0.002291,87315.0,87294.0,0.0022908]
[1745229842254,0.002291,87315.0,87284.0,0.17545748]
[1745229842615,0.002291,87315.0,87285.0,0.12059311]
[1745229842952,0.002291,87315.0,87286.0,0.0483]
[1745229843289,0.002291,87315.0,87287.0,0.12059311]
[1745229844428,0.002291,87315.0,87288.0,0.34]
[1745229844569,0.002291,87315.0,87289.0,0.12059311]
[1745229847026,0.002291,87315.0,87289.0,0.11944791]
[1745229848186,0.0468,87314.0,87290.0,0.34]
[1745229848437,0.0468,87312.0,87292.0,0.34]
[1745229848630,0.0028635,87311.0,87292.0,0.34]
[1745229848976,0.23399805,87293.0,87292.0,0.34]
[1745229849178,0.22349806,87293.0,87292.0,0.34]
[1745229849423,0.22349806,87293.0,87292.0,0.341]
[1745229849981,0.16635736,87293.0,87292.0,0.341]
[1745229850183,0.10921666,87293.0,87292.0,0.3411357]
[1745229850659,0.09599666,87293.0,87292.0,0.3411357]
[1745229850893,0.03885596,87293.0,87292.0,0.3411357]
[1745229851295,0.0468,87312.0,87292.0,0.3411357]
[1745229851438,0.0468,87312.0,87293.0,0.00114521]
[1745229851838,0.2343,87294.0,87293.0,0.00114521]
[1745229852054,0.20393,87294.0,87292.0,0.3411357]
[1745229852874,0.18198,87294.0,87292.0,0.3411357]
[1745229854486,0.18202,87294.0,87292.0,0.3411357]
[1745229855218,0.18206,87294.0,87292.0,0.3411357]
[1745229855820,0.18200515,87294.0,87292.0,0.3411357]
[1745229856457,0.17456515,87294.0,87292.0,0.3411357]
[1745229856933,0.17448979,87294.0,87292.0,0.3411357]
[1745229860215,0.15150822,87294.0,87292.0,0.3411357]
[1745229866752,0.09436752,87294.0,87292.0,0.3411357]
[1745229867162,0.00286369,87311.0,87292.0,0.3411357]
[1745229867371,0.0276207,87313.0,87294.0,0.39709988]
[1745229867569,0.0276207,87313.0,87296.0,0.34]
[1745229867768,0.0276207,87313.0,87297.0,0.00229069]
[1745229867967,0.09185741,87320.0,87298.0,0.11944791]
[1745229868170,0.09185741,87320.0,87299.0,0.34229055]
[1745229868404,0.09185741,87320.0,87301.0,0.34]
[1745229868615,0.09185741,87320.0,87302.0,0.00229055]
[1745229869011,0.09185741,87320.0,87303.0,0.0481]
[1745229869215,0.00171811,87328.0,87304.0,0.12173846]
[1745229869572,0.2343,87305.0,87304.0,0.12173846]
[1745229869780,0.1771593,87305.0,87304.0,0.11944791]
[1745229870386,1e-08,87305.0,87304.0,0.45944791]
[1745229870843,1e-08,87305.0,87304.0,0.46044791]
[1745229876764,0.0464,87322.0,87305.0,0.34]
[1745229876909,0.0464,87322.0,87307.0,0.34]
[1745229877113,0.0464,87322.0,87304.0,0.001]
[1745229877114,0.0464,87322.0,87309.0,0.34]
[1745229877310,0.0464,87322.0,87309.0,0.45944791]
[1745229877611,0.0464,87322.0,87310.0,0.00229035]
[1745229879014,0.0464,87322.0,87309.0,0.45944791]
[1745229880251,0.0464,87322.0,87309.0,0.46800088]
[1745229883045,0.0464,87322.0,87309.0,0.00855297]
[1745229883243,0.0464,87322.0,87304.0,0.001]
[1745229883439,0.0464,87322.0,87306.0,0.34]
[1745229883616,0.0464,87322.0,87308.0,0.34]
[1745229889151,0.00171811,87321.0,87304.0,0.001]
[1745229889365,0.04801811,87321.0,87304.0,0.001]
[1745229891055,0.11944791,87320.0,87304.0,0.001]
[1745229891262,0.0475,87317.0,87304.0,0.001]
[1745229891468,0.0478,87315.0,87304.0,0.001]
[1745229891671,0.0478,87313.0,87304.0,0.001]
[1745229891827,0.00155791,87312.0,87304.0,0.001]
[1745229892029,0.12100582,87312.0,87304.0,0.001]
[1745229892234,0.0494,87310.0,87304.0,0.001]
[1745229892445,0.0494,87308.0,87304.0,0.001]
[1745229892648,0.00139771,87307.0,87304.0,0.001]
[1745229893422,0.00239771,87307.0,87277.0,0.05754834]
[1745229893639,0.0494,87306.0,87279.0,0.34]
[1745229893826,0.00139771,87305.0,87281.0,0.34]
[1745229894022,0.0494,87304.0,87283.0,0.34]
[1745229894242,0.00139771,87303.0,87285.0,0.34]
[1745229895786,0.0494,87302.0,87283.0,0.02721035]
[1745229896099,0.00139771,87301.0,87277.0,0.39752619]
[1745229896311,0.00139771,87301.0,87279.0,0.34]
[1745229896600,0.00139771,87301.0,87277.0,0.39752619]
[1745229896601,0.00139771,87301.0,87281.0,0.34]
[1745229896807,0.00139771,87301.0,87283.0,0.34]
[1745229896944,0.0984,87300.0,87279.0,0.00838371]
[1745229897146,0.00139771,87299.0,87277.0,0.01879009]
[1745229897448,0.0494,87298.0,87278.0,0.3422912]
[1745229897653,0.00139771,87297.0,87278.0,0.34]
[1745229897856,0.0494,87296.0,87278.0,0.34]
[1745229898462,0.00139771,87295.0,87278.0,0.34]
[1745229898679,0.00139771,87295.0,87278.0,0.34848486]
[1745229899589,0.00139771,87295.0,87279.0,0.0022912]
[1745229899794,0.00139771,87295.0,87278.0,0.34848486]
[1745229900418,0.0494,87296.0,87279.0,0.0022912]
[1745229901433,0.00139771,87295.0,87279.0,0.0022912]
[1745229901639,0.0494,87296.0,87279.0,0.0022912]
[1745229901864,0.00139771,87295.0,87279.0,0.0022912]
[1745229903069,0.00139771,87295.0,87278.0,0.00848486]
[1745229903259,0.00139771,87295.0,87277.0,0.01879009]
[1745229903468,0.04937269,87294.0,87277.0,0.01879009]
[1745229903665,0.00144986,87293.0,87277.0,0.01879009]
[1745229904045,0.049,87298.0,87277.0,0.01879009]
[1745229904247,0.049,87296.0,87277.0,0.02755526]
[1745229904447,0.049,87294.0,87277.0,0.01879009]
[1745229904647,0.049,87292.0,87277.0,0.01879009]
[1745229904877,0.12089777,87291.0,87277.0,0.01879009]
[1745229905138,0.049,87290.0,87277.0,0.01879009]
[1745229905337,0.049,87288.0,87277.0,0.01879009]
[1745229905473,0.12089777,87287.0,87277.0,0.01879009]
[1745229905681,0.049,87286.0,87277.0,0.01879009]
[1745229905907,0.0463,87284.0,87277.0,0.01879009]
[1745229906102,0.12089777,87283.0,87277.0,0.01879009]
[1745229906611,0.04931939,87282.0,87277.0,0.01879009]
[1745229906783,0.1208774,87281.0,87277.0,0.01879009]
[1745229907978,0.00142949,87281.0,87277.0,0.01879009]
[1745229909422,0.00142949,87281.0,87249.0,0.05744962]
[1745229909620,0.0494,87280.0,87265.0,4.663e-05]
[1745229909825,0.0494,87280.0,87265.0,0.0192628]
[1745229909826,0.00142949,87279.0,87265.0,0.0192628]
[1745229911440,0.0494,87278.0,87265.0,0.0192628]
[1745229911617,0.00142949,87277.0,87265.0,0.0192628]
[1745229912229,0.0494,87276.0,87265.0,0.0192628]
[1745229912387,0.00142949,87275.0,87265.0,0.0192628]
[1745229912591,0.0957,87274.0,87265.0,0.0192628]
[1745229912835,0.00140867,87273.0,87265.0,0.0192628]
[1745229915761,0.0957,87274.0,87265.0,0.0192628]
[1745229916527,0.00140867,87273.0,87265.0,0.0192628]
[1745229920931,0.0477,87272.0,87265.0,0.0192628]
[1745229921140,0.00140867,87271.0,87265.0,0.0192628]
[1745229922067,0.0012664,87271.0,87265.0,0.0192628]
[1745229923607,0.0022664,87271.0,87265.0,0.0192628]
[1745229924288,0.001,87271.0,87265.0,0.0192628]
[1745229926871,0.0012664,87270.0,87265.0,0.0192628]
[1745229927944,0.001,87271.0,87265.0,0.0192628]
[1745229932579,0.001,87271.0,87265.0,0.01919782]
[1745229932777,0.001,87271.0,87252.0,0.00229183]
[1745229932982,0.001,87271.0,87253.0,0.34]
[1745229933201,0.001,87271.0,87254.0,0.00229183]
[1745229934048,0.001,87271.0,87254.0,0.02130073]
[1745229934292,0.001,87271.0,87254.0,0.00229183]
[1745229934809,0.001,87271.0,87254.0,0.01082676]
[1745229937616,0.001,87271.0,87254.0,0.03473773]
[1745229939020,0.0012664,87270.0,87254.0,0.03473773]
[1745229941060,0.0012664,87270.0,87254.0,0.0324459]
[1745229941479,0.0012664,87270.0,87253.0,0.34]
[1745229941844,0.0012664,87270.0,87253.0,0.36370333]
[1745229942020,0.0495,87269.0,87253.0,0.36370333]
[1745229942228,0.0495,87269.0,87254.0,0.00229183]
[1745229943215,0.0495,87269.0,87253.0,0.36370333]
[1745229943399,0.0495,87269.0,87254.0,0.00229183]
[1745229944935,0.0012664,87268.0,87253.0,0.03211557]
[1745229945104,0.0495,87267.0,87252.0,0.00012441]
[1745229946213,0.0012664,87266.0,87252.0,0.00012441]
[1745229947217,0.0495,87265.0,87252.0,0.02399984]
[1745229947541,0.0495,87265.0,87252.0,0.00856237]
[1745229947992,0.0977,87263.0,87252.0,0.00856237]
[1745229949780,0.0977,87263.0,87252.0,0.03162676]
[1745229949978,0.0495,87261.0,87252.0,0.03162676]
[1745229952251,0.0012664,87260.0,87252.0,0.03162676]
[1745229954060,0.0487,87259.0,87252.0,0.03162676]
[1745229954404,0.0012664,87258.0,87252.0,0.03162676]
[1745229956736,0.0487,87257.0,87252.0,0.0231888]
[1745229956937,0.0487,87255.0,87252.0,0.0231888]
[1745229957254,0.0012664,87254.0,87252.0,0.0231888]
[1745229958184,0.0012664,87254.0,87252.0,0.0231378]
[1745229960187,0.0952,87253.0,87252.0,0.0231378]
[1745229960781,0.0465,87253.0,87225.0,0.0579201]
[1745229961079,0.0499664,87252.0,87227.0,0.05773749]
[1745229961286,0.0499664,87252.0,87227.0,0.14301822]
[1745229962013,0.16594791,87251.0,87227.0,0.03211339]
[1745229962303,0.0499664,87250.0,87224.0,0.17251395]
[1745229962517,0.0487,87249.0,87224.0,0.17251395]
[1745229962672,0.0499664,87248.0,87224.0,0.19560093]
[1745229963291,0.0487,87248.0,87226.0,0.34]
[1745229963679,0.0487,87248.0,87228.0,0.39774568]
[1745229963862,0.0487,87248.0,87230.0,0.34]
[1745229964055,0.04470001,87251.0,87232.0,0.34]
[1745229964260,0.04470001,87251.0,87234.0,0.34]
[1745229964461,0.001,87254.0,87237.0,0.05749104]
[1745229964704,0.001,87254.0,87238.0,0.4946009]
[1745229964911,0.001,87254.0,87238.0,0.55000324]
[1745229966225,0.001,87254.0,87238.0,0.51714246]
[1745229967475,0.001,87254.0,87238.0,0.45944791]
[1745229967685,0.00171342,87254.0,87238.0,0.45944791]
[1745229968092,0.00171342,87254.0,87234.0,0.34]
[1745229968288,0.00171342,87254.0,87236.0,0.34]
[1745229970143,0.00171342,87254.0,87237.0,0.05749104]
[1745229970636,0.00171342,87254.0,87236.0,0.34]
[1745229971823,0.00171342,87254.0,87237.0,0.05749104]
[1745229972464,0.00171342,87254.0,87236.0,0.39732248]
[1745229973926,0.00171342,87254.0,87237.0,0.05749104]
[1745229974913,0.00171342,87254.0,87236.0,0.34]
[1745229977240,0.046,87253.0,87236.0,0.34]
[1745229977378,0.00071342,87252.0,87236.0,0.34]
[1745229980806,0.0466,87250.0,87233.0,0.4118]
[1745229980970,0.21201874,87252.0,87233.0,0.4118]
[1745229980971,0.046,87247.0,87233.0,0.4118]
[1745229981174,0.046,87245.0,87234.0,0.34]
[1745229981372,0.00071342,87244.0,87234.0,0.34]
[1745229983665,0.00071342,87244.0,87224.0,0.0235401]
[1745229986707,0.046,87243.0,87224.0,0.03214158]
[1745229986891,0.11944791,87249.0,87224.0,0.03214158]
[1745229986892,0.00071342,87242.0,87224.0,0.03214158]
[1745229987108,0.046,87240.0,87224.0,0.03214158]
[1745229987351,0.00071342,87239.0,87224.0,0.03214158]
[1745229988577,0.046,87238.0,87224.0,0.03214158]
[1745229988777,0.00071342,87237.0,87224.0,0.03214158]
[1745229991456,0.046,87236.0,87224.0,0.03214158]
[1745229991703,0.00071342,87235.0,87224.0,0.03214158]
[1745229994268,0.046,87236.0,87225.0,0.03286078]
[1745229994878,0.03906,87236.0,87225.0,0.03286078]
[1745229995071,0.03235,87236.0,87225.0,0.03286078]
[1745229995491,0.0466,87241.0,87226.0,0.03332918]
[1745229995809,0.0466,87241.0,87227.0,0.03286078]
[1745230000923,0.0466,87241.0,87228.0,0.00229264]
[1745230001626,0.03922,87241.0,87228.0,0.00229264]
[1745230006393,0.03922,87241.0,87227.0,0.06389725]
[1745230007571,0.03922,87241.0,87224.0,0.03214158]
[1745230007572,0.04641342,87240.0,87224.0,0.03214158]
[1745230009271,0.04645342,87240.0,87224.0,0.03214158]
[1745230010517,0.04649342,87240.0,87224.0,0.03214158]
[1745230011873,0.04649342,87240.0,87225.0,0.00229264]
[1745230013261,0.04649342,87240.0,87224.0,0.03214158]
[1745230013770,0.22916634,87273.0,87224.0,0.03214158]
[1745230013771,0.01071785,87271.0,87225.0,0.56624213]
[1745230013981,0.09612,87259.0,87226.0,0.4591]
[1745230014210,0.09612,87259.0,87227.0,0.16914791]
[1745230014430,0.09612,87259.0,87227.0,0.25498596]
[1745230015187,0.79364,87275.0,87227.0,0.25498596]
[1745230015390,0.09612,87259.0,87227.0,0.25498596]
[1745230016742,0.0938,87258.0,87227.0,0.25498596]
[1745230018808,0.0938,87258.0,87228.0,0.34]
[1745230018942,0.09384,87258.0,87230.0,0.34]
[1745230019154,0.09384,87258.0,87232.0,0.34]
[1745230019352,0.09384,87258.0,87234.0,0.34]
[1745230019554,0.09384,87258.0,87236.0,0.34]
[1745230020768,0.09384,87258.0,87235.0,0.11944791]
[1745230021256,0.0457,87257.0,87227.0,0.4834408]
[1745230021454,0.0481,87256.0,87228.0,0.11944791]
[1745230021774,0.0457,87255.0,87228.0,0.11944791]
[1745230022962,0.0457,87255.0,87229.0,0.34]
[1745230023116,0.0457,87255.0,87231.0,0.34]
[1745230023319,0.0481,87254.0,87231.0,0.34]
[1745230026231,0.0473,87253.0,87231.0,0.34]
[1745230030902,0.0473,87251.0,87231.0,0.34]
[1745230031084,0.0937,87251.0,87231.0,0.34]
[1745230031455,0.0937,87251.0,87227.0,0.4118]
[1745230031456,0.0473,87250.0,87228.0,0.34]
[1745230031654,0.0473,87248.0,87228.0,0.34]
[1745230032606,0.0473,87248.0,87229.0,0.06389725]
[1745230033977,0.0473,87248.0,87230.0,0.00229259]
[1745230034092,0.0473,87248.0,87231.0,0.03286078]
[1745230034291,0.0473,87248.0,87231.0,0.06389725]
[1745230036381,0.0464,87247.0,87224.0,0.03314158]
[1745230038141,0.0473,87246.0,87224.0,0.03314158]
[1745230042783,0.098,87244.0,87224.0,0.03314158]
[1745230042994,0.098,87244.0,87225.0,0.0351534]
[1745230043554,0.098,87244.0,87225.0,0.03286078]
[1745230049471,0.09185741,87242.0,87224.0,0.03314158]
[1745230050471,0.098,87241.0,87224.0,0.03314158]
[1745230050818,0.098,87241.0,87224.0,0.03214158]
[1745230052129,0.098,87241.0,87211.0,0.03286078]
[1745230052332,0.09845177,87241.0,87216.0,0.11944791]
[1745230052576,0.09845177,87241.0,87216.0,0.15230869]
[1745230053289,0.09845177,87241.0,87216.0,0.18234179]
[1745230054200,0.09845177,87241.0,87217.0,0.34]
[1745230055407,0.09845177,87241.0,87217.0,0.38133662]
[1745230059066,0.09185741,87240.0,87217.0,0.34847584]
[1745230059292,0.0953,87239.0,87217.0,0.34847584]
[1745230063635,0.09497599,87239.0,87217.0,0.34847584]
[1745230064289,0.09497599,87239.0,87217.0,0.00847584]
[1745230064535,0.0495,87238.0,87216.0,0.3700331]
[1745230066711,0.0458,87237.0,87216.0,0.0300331]
[1745230066913,0.0495,87236.0,87216.0,0.0300331]
[1745230067181,0.0495,87236.0,87208.0,0.34]
[1745230067421,0.0495,87236.0,87210.0,0.34]
[1745230067645,0.0495,87236.0,87212.0,0.34]
[1745230067878,0.0495,87236.0,87212.0,0.45944791]
[1745230068106,0.0495,87236.0,87212.0,0.48471287]
[1745230068528,0.0458,87235.0,87212.0,0.48471287]
[1745230068736,0.0458,87235.0,87212.0,0.02526496]
[1745230068940,0.0495,87234.0,87212.0,0.02526496]
[1745230069102,0.0495,87234.0,87208.0,0.34]
[1745230069304,0.0495,87234.0,87210.0,0.34]
[1745230071190,0.0475,87233.0,87210.0,0.34]
[1745230072451,0.0457,87231.0,87210.0,0.34]
[1745230074698,0.0457,87231.0,87211.0,0.00229299]
[1745230077628,0.0457,87231.0,87210.0,0.34]
[1745230081511,0.0457,87231.0,87211.0,0.00229299]
[1745230081965,0.0457,87231.0,87209.0,0.11944791]
[1745230083458,0.0457,87231.0,87210.0,0.34]
[1745230085350,0.0417,87231.0,87210.0,0.34]
[1745230085916,0.0417,87231.0,87210.0,0.344]
[1745230086343,0.0397,87231.0,87210.0,0.344]
[1745230087932,0.0397,87231.0,87210.0,0.346]
[1745230091745,0.0969,87229.0,87210.0,0.006]
[1745230092306,0.0969,87229.0,87210.0,0.004]
[1745230092707,0.0969,87229.0,87210.0,0.002]
[1745230092874,0.0969,87229.0,87210.0,0.004]
[1745230093681,0.09685578,87229.0,87210.0,0.004]
[1745230093870,0.09685578,87229.0,87210.0,0.002]
[1745230094287,0.09685578,87229.0,87210.0,0.004]
[1745230094937,0.09685578,87229.0,87207.0,0.4118]
[1745230095159,0.0479,87229.0,87208.0,0.03413862]
[1745230095390,0.0479,87229.0,87200.0,0.08116078]
[1745230095618,0.0479,87229.0,87202.0,0.11944791]
[1745230095864,0.0479,87229.0,87202.0,0.18334516]
[1745230096093,0.0479,87229.0,87207.0,0.003]
[1745230096332,0.0479,87229.0,87208.0,0.03332955]
[1745230096571,0.0479,87229.0,87208.0,0.06619033]
[1745230096799,0.0493,87228.0,87208.0,0.06619033]
[1745230097884,0.0493,87228.0,87208.0,0.10034384]
[1745230098083,0.04339696,87228.0,87208.0,0.10134384]
[1745230098451,0.0479,87229.0,87210.0,0.05744245]
[1745230098660,0.0479,87229.0,87211.0,0.18563814]
[1745230098864,0.03222,87229.0,87211.0,0.18563814]
[1745230099122,0.03222,87229.0,87211.0,0.24282362]
[1745230099297,0.03222,87229.0,87211.0,0.18334516]
[1745230099458,0.03222,87229.0,87211.0,0.24282359]
[1745230099675,0.03222,87229.0,87211.0,0.24053064]
[1745230099883,0.03222,87229.0,87211.0,0.24253064]
[1745230100087,0.03222,87229.0,87211.0,0.18534516]
[1745230100290,0.09668,87235.0,87211.0,0.18763811]
[1745230100545,0.09668,87235.0,87212.0,0.0467]
[1745230100698,0.09668,87235.0,87214.0,0.34]
[1745230100905,0.09668,87235.0,87215.0,0.00229289]
[1745230102036,0.09668,87235.0,87215.0,0.00429289]
[1745230103206,0.14538,87235.0,87215.0,0.00429289]
[1745230103944,0.0487,87235.0,87215.0,0.00429289]
[1745230104484,0.0487,87235.0,87215.0,0.00529289]
[1745230107352,0.0487,87235.0,87215.0,0.003]
[1745230109180,0.0487,87235.0,87213.0,0.11944791]
[1745230110544,0.0487,87235.0,87213.0,0.12044791]
[1745230111002,0.0487,87235.0,87213.0,0.12144791]
[1745230111199,0.0487,87235.0,87214.0,0.34]
[1745230112612,0.0487,87235.0,87214.0,0.341]
[1745230118059,0.0482,87234.0,87214.0,0.341]
[1745230118179,0.0484,87233.0,87214.0,0.341]
[1745230118807,0.0484,87233.0,87215.0,0.07936078]
[1745230119626,0.0484,87233.0,87215.0,0.03286078]
[1745230120441,0.0484,87233.0,87215.0,0.03386078]
[1745230121827,0.0484,87233.0,87215.0,0.03486078]
[1745230122790,0.0484,87233.0,87216.0,0.00229291]
[1745230123001,0.0484,87233.0,87216.0,0.03515369]
[1745230123460,0.0484,87233.0,87216.0,0.03286078]
[1745230124291,0.0484,87233.0,87216.0,0.03386078]
[1745230130080,0.0484,87233.0,87216.0,0.03615369]
[1745230130296,0.04027,87233.0,87216.0,0.03615369]
[1745230133148,0.04027,87233.0,87216.0,0.03386078]
[1745230133693,0.04027,87233.0,87216.0,0.001]
[1745230135665,0.048,87232.0,87216.0,0.001]
[1745230136594,0.048,87232.0,87210.0,0.0465]
[1745230136796,0.048,87232.0,87216.0,0.001]
[1745230138501,0.11944791,87231.0,87216.0,0.001]
[1745230138880,0.0933,87230.0,87216.0,0.001]
[1745230139032,0.21274791,87230.0,87216.0,0.001]
[1745230139647,0.21274791,87230.0,87208.0,0.03415351]
[1745230140005,0.21274791,87230.0,87216.0,0.001]
[1745230140281,0.21274791,87230.0,87207.0,0.34]
[1745230140282,0.21274791,87230.0,87207.0,0.36267458]
[1745230140502,0.21274791,87230.0,87216.0,0.001]
[1745230141224,0.0933,87230.0,87216.0,0.001]
[1745230141528,0.0453,87230.0,87217.0,0.03286078]
[1745230143041,0.0453,87230.0,87217.0,0.03386078]
[1745230143860,0.0453,87230.0,87217.0,0.001]
[1745230145985,0.0458,87229.0,87217.0,0.001]
[1745230146859,0.0458,87229.0,87208.0,0.00858762]
[1745230147089,0.0458,87229.0,87209.0,0.34]
[1745230147281,0.0458,87229.0,87217.0,0.001]
[1745230150160,0.0453,87230.0,87217.0,0.001]
[1745230151229,0.0453,87230.0,87209.0,0.37286078]
[1745230151447,0.0458,87229.0,87217.0,0.001]
[1745230151851,0.11944791,87228.0,87217.0,0.001]
[1745230152452,0.0458,87229.0,87218.0,0.03286078]
[1745230153527,0.03897809,87230.0,87218.0,0.03286078]
[1745230154151,0.03897809,87230.0,87218.0,0.03386078]
[1745230154321,0.03897809,87230.0,87211.0,0.0452]
[1745230154524,0.03897809,87230.0,87218.0,0.001]
[1745230156313,0.09696,87237.0,87219.0,0.0452]
[1745230156517,0.09696,87237.0,87220.0,0.34]
[1745230156696,0.09696,87237.0,87220.0,0.18473923]
[1745230156847,0.09696,87237.0,87221.0,0.03286078]
[1745230159236,0.09696,87237.0,87221.0,0.03386078]
[1745230160164,0.09696,87237.0,87213.0,0.0456]
[1745230160365,0.09696,87237.0,87214.0,0.11944791]
[1745230160727,0.0488,87240.0,87215.0,0.06345154]
[1745230160901,0.0488,87240.0,87216.0,0.11944791]
[1745230161100,0.0488,87240.0,87217.0,0.00229273]
[1745230161304,0.0488,87240.0,87218.0,0.11944791]
[1745230161605,0.0488,87240.0,87219.0,0.00229273]
[1745230161804,0.0488,87240.0,87220.0,0.11944791]
[1745230163456,0.0488,87240.0,87220.0,0.12044791]
[1745230167024,0.0488,87240.0,87221.0,0.34]
[1745230167710,0.0488,87240.0,87222.0,0.00229273]
[1745230168370,0.01830082,87248.0,87223.0,0.49048421]
[1745230168658,0.0461,87250.0,87225.0,0.047]
[1745230168864,0.0461,87250.0,87227.0,0.34]
[1745230169063,0.0461,87250.0,87229.0,0.34]
[1745230169267,0.0461,87250.0,87229.0,0.45944791]
[1745230170197,0.0461,87250.0,87229.0,0.46044791]
[1745230170457,0.000845,87268.0,87230.0,0.1693404]
[1745230170684,0.11944791,87265.0,87231.0,0.34]
[1745230170900,0.11944791,87265.0,87233.0,0.34]
[1745230171129,0.11944791,87265.0,87235.0,0.34]
[1745230171372,0.11944791,87265.0,87236.0,0.03241472]
[1745230171373,0.0476,87264.0,87236.0,0.03241472]
[1745230171595,0.11944791,87263.0,87236.0,0.03241472]
[1745230172264,0.0476,87264.0,87237.0,0.3879]
[1745230172505,0.0476,87264.0,87239.0,0.34]
[1745230172713,0.0476,87264.0,87240.0,0.00229226]
[1745230173335,0.048,87263.0,87239.0,0.34]
[1745230174213,0.048,87263.0,87236.0,0.0084302]
[1745230174214,0.0475,87261.0,87236.0,0.0084302]
[1745230174429,0.11944791,87260.0,87236.0,0.0084302]
[1745230174638,0.11944791,87260.0,87229.0,0.00229249]
[1745230174848,0.11944791,87260.0,87231.0,0.34]
[1745230175058,0.11944791,87260.0,87232.0,0.00229249]
[1745230175474,0.11944791,87260.0,87232.0,0.0110363]
[1745230175704,0.11944791,87260.0,87232.0,0.00229249]
[1745230177044,0.11944791,87260.0,87232.0,0.001]
[1745230177392,0.11944791,87260.0,87232.0,0.00329249]
[1745230177592,0.11944791,87260.0,87232.0,0.001]
[1745230177974,0.11944791,87260.0,87232.0,0.002]
[1745230179818,0.11944791,87260.0,87232.0,0.01078309]
[1745230180127,0.11944791,87260.0,87232.0,0.002]
[1745230180714,0.096,87259.0,87232.0,0.002]
[1745230180895,0.11944791,87258.0,87232.0,0.002]
[1745230181477,0.11944791,87258.0,87232.0,0.001]
[1745230181677,0.11944791,87258.0,87231.0,0.34]
[1745230181952,0.11944791,87258.0,87232.0,0.001]
[1745230182133,0.11944791,87258.0,87231.0,0.34]
[1745230182440,0.11944791,87258.0,87232.0,0.001]
[1745230183457,0.11944791,87258.0,87232.0,0.00963213]
[1745230186652,0.0466,87257.0,87232.0,0.00963213]
[1745230186860,0.16604791,87257.0,87232.0,0.00963213]
[1745230187182,0.16604791,87257.0,87232.0,0.01192462]
[1745230187768,0.16604791,87257.0,87232.0,0.00863213]
[1745230187967,0.16604791,87257.0,87231.0,0.34]
[1745230188597,0.11944791,87256.0,87232.0,0.001]
[1745230188798,0.14945895,87256.0,87231.0,0.00866558]
[1745230189031,0.096,87255.0,87228.0,0.0479]
[1745230189252,0.11944791,87254.0,87231.0,0.001]
[1745230190408,0.0494,87252.0,87231.0,0.001]
[1745230190652,0.16604791,87251.0,87231.0,0.001]
[1745230190854,0.096,87250.0,87232.0,0.001]
[1745230191008,0.11944791,87249.0,87232.0,0.001]
[1745230191215,0.11944791,87249.0,87231.0,0.001]
[1745230191857,0.11944791,87249.0,87222.0,0.00045177]
[1745230192597,0.11944791,87249.0,87222.0,0.00274452]
[1745230192980,0.11944791,87249.0,87222.0,0.00045177]
[1745230193187,0.11944791,87249.0,87222.0,0.01115793]
[1745230193925,0.11944791,87249.0,87222.0,0.00886518]
[1745230194142,0.11944791,87249.0,87222.0,0.00986518]
[1745230194698,0.11944791,87249.0,87223.0,0.0475]
[1745230194895,0.14708,87258.0,87224.0,0.00229275]
[1745230195095,0.11944791,87257.0,87225.0,0.40115868]
[1745230195321,0.11944791,87257.0,87227.0,0.0475]
[1745230195532,0.11944791,87257.0,87228.0,0.3710363]
[1745230197414,0.15,87224.0,87191.0,0.002]
[1745230197618,0.03368052,87197.0,87191.0,0.002]
[1745230197835,0.03368052,87199.0,87191.0,0.02252467]
[1745230198078,0.11944791,87229.0,87194.0,0.001]
[1745230198301,0.03368052,87212.0,87200.0,0.001]
[1745230198523,0.11944791,87229.0,87191.0,0.342]
[1745230198524,0.03368052,87216.0,87204.0,0.001]
[1745230198749,0.03368052,87212.0,87204.0,0.001]
[1745230198971,0.03368052,87208.0,87204.0,0.001]
[1745230200893,0.03468052,87208.0,87204.0,0.001]
[1745230201096,0.03568052,87208.0,87204.0,0.001]
[1745230201830,0.002,87208.0,87204.0,0.001]
[1745230202181,0.03368052,87225.0,87211.0,0.001]
[1745230202768,0.03368052,87225.0,87211.0,0.03386789]
[1745230202968,0.03368052,87225.0,87211.0,0.001]
[1745230203198,0.03368052,87225.0,87212.0,0.03286789]
[1745230203364,1.5025,87213.0,87212.0,0.03286789]
[1745230204677,1.5035,87213.0,87211.0,0.001]
[1745230206494,1.5045,87213.0,87211.0,0.001]
[1745230206939,1.5025,87213.0,87211.0,0.001]
[1745230207140,1.5045,87213.0,87211.0,0.001]
[1745230207561,1.5045,87213.0,87205.0,0.001]
[1745230207562,0.03368052,87212.0,87205.0,0.001]
[1745230210391,0.03368052,87212.0,87204.0,0.001]
[1745230210392,0.1588578,87213.0,87212.0,0.001]
[1745230210595,0.4162,87235.0,87223.0,0.001]
[1745230210804,0.03368052,87239.0,87223.0,0.001]
[1745230211286,0.03368052,87236.0,87219.0,0.001]
[1745230211521,0.03368052,87235.0,87219.0,0.001]
[1745230211823,0.03368052,87234.0,87219.0,0.001]
[1745230212234,0.233,87220.0,87219.0,0.001]
[1745230212613,0.233,87220.0,87211.0,0.09728]
[1745230214299,0.233,87220.0,87211.0,0.09228]
[1745230215759,1.31444791,87212.0,87204.0,0.001]
[1745230215965,0.03368052,87205.0,87204.0,0.001]
[1745230217219,0.03468052,87205.0,87204.0,0.001]
[1745230218655,0.03568052,87205.0,87204.0,0.001]
[1745230219221,0.002,87205.0,87204.0,0.001]
[1745230219393,0.03568052,87205.0,87204.0,0.001]
[1745230221519,1.23068052,87205.0,87204.0,0.001]
[1745230221823,1.22868052,87205.0,87204.0,0.001]
[1745230222031,1.17667463,87205.0,87204.0,0.0474]